bitfinex/quotes_ETHUSD_20241225
["timestamp","ask_amount","ask_price","bid_price","bid_amount"]
[1735086182941,2.86697,3488.0,3487.5,0.04149663]
[1735086183171,2.86685,3488.2,3487.5,0.04149663]
[1735086183766,2.86666,3488.4,3487.5,0.04149663]
[1735086184120,2.86648,3488.6,3487.6,1.18679266]
[1735086184242,4.05158075,3488.8,3487.7,0.84536646]
[1735086184443,4.05158075,3488.8,3487.8,0.8167]
[1735086184685,1.18520075,3488.8,3487.9,0.8167]
[1735086184844,1.18520075,3488.8,3488.0,0.8167]
[1735086185059,1.18520075,3488.8,3488.1,0.37251608]
[1735086185274,1.18520075,3488.8,3488.2,0.8167]
[1735086185601,2.86616,3489.0,3488.3,0.04081918]
[1735086185969,4.05113075,3489.3,3488.4,0.8167]
[1735086186384,4.05113075,3489.3,3488.5,0.04055889]
[1735086187054,2.86593,3489.3,3488.5,0.04055889]
[1735086187294,2.866,3489.2,3488.4,0.8167]
[1735086187519,2.866,3489.2,3488.5,0.37121525]
[1735086187662,2.866,3489.2,3488.6,0.8167]
[1735086188030,2.866,3489.2,3488.7,0.04054699]
[1735086193094,1.18520075,3489.9,3488.7,8.89054699]
[1735086193296,4.05063075,3489.9,3488.9,0.8167]
[1735086193609,4.05063075,3489.9,3488.8,8.87865845]
[1735086193610,2.8655,3489.8,3489.1,0.8167]
[1735086193986,2.8655,3489.8,3489.2,0.04028048]
[1735086195429,3.67834,3490.3,3489.2,0.04028048]
[1735086195625,3.67834,3490.3,3489.3,0.8167]
[1735086195815,2.86537,3490.0,3489.3,0.85697453]
[1735086196017,3.67834,3490.3,3489.3,0.85697453]
[1735086196220,3.67834,3490.3,3489.3,1.06869474]
[1735086196731,2.86518,3490.2,3489.4,0.8167]
[1735086196933,2.86518,3490.2,3489.5,0.03929824]
[1735086198434,2.86565,3489.6,3489.5,0.03929824]
[1735086198794,2.86565,3489.6,3489.1,0.8167]
[1735086199017,2.86565,3489.6,3489.5,0.03913661]
[1735086199286,2.86565,3489.6,3489.5,0.03914238]
[1735086199927,2.86565,3489.6,3489.1,0.8167]
[1735086200103,2.86565,3489.6,3489.2,0.03916022]
[1735086200492,2.86552,3489.8,3489.2,0.03916022]
[1735086201514,2.86552,3489.8,3489.2,1.00974624]
[1735086201708,2.8653,3490.1,3489.3,0.831]
[1735086202115,2.8653,3490.1,3489.5,0.831]
[1735086202613,2.8653,3490.1,3489.6,0.03926343]
[1735086203000,2.86491,3490.5,3489.6,0.03926343]
[1735086203202,0.7682,3490.7,3489.6,0.03926343]
[1735086203203,2.86534,3490.0,3489.6,0.03926343]
[1735086203905,1.054734,3490.0,3489.6,0.03926343]
[1735086204530,2.8657,3489.6,3489.2,0.831]
[1735086206112,2.86532,3490.0,3489.2,0.831]
[1735086208147,0.7682,3490.4,3489.2,0.831]
[1735086208362,2.86568,3489.6,3489.2,0.831]
[1735086208563,2.86568,3489.6,3489.2,1.7991]
[1735086208767,2.86508,3490.3,3488.6,8.85]
[1735086208768,2.8659,3489.3,3488.6,8.85]
[1735086208973,2.8659,3489.3,3488.7,0.831]
[1735086209180,2.86562,3489.7,3488.7,0.831]
[1735086209390,2.86585,3489.4,3488.7,0.831]
[1735086209971,2.86599,3489.2,3488.7,0.831]
[1735086210490,2.86583,3489.4,3488.7,0.831]
[1735086211634,3.0,3489.8,3488.7,0.831]
[1735086211936,3.0,3489.8,3488.8,0.42646007]
[1735086212887,3.0,3489.8,3488.7,9.681]
[1735086213196,2.86579,3489.5,3488.7,9.681]
[1735086214299,3.3983073,3490.1,3488.7,9.681]
[1735086214300,3.0,3490.0,3488.7,9.681]
[1735086214587,2.86591,3489.3,3488.7,9.681]
[1735086217700,2.86576,3489.5,3488.7,9.681]
[1735086217992,2.86576,3489.5,3488.9,0.8119]
[1735086218401,2.86576,3489.5,3489.0,0.03939725]
[1735086219057,2.86585,3489.4,3489.0,0.03939725]
[1735086220898,0.7919,3489.8,3489.0,0.03939725]
[1735086220899,2.86567,3489.6,3489.0,0.03939725]
[1735086221771,2.86551,3489.8,3489.0,0.03939725]
[1735086221976,2.86551,3489.8,3489.1,0.19047604]
[1735086222265,2.86551,3489.8,3489.2,0.03931031]
[1735086222901,2.86551,3489.8,3489.3,0.8119]
[1735086223401,2.86551,3489.8,3489.4,0.03929842]
[1735086223723,2.86539,3490.0,3489.4,0.03929842]
[1735086224024,2.86543,3489.9,3489.4,0.03929842]
[1735086224408,1.18520075,3490.3,3489.4,0.03929842]
[1735086224613,2.86566,3489.6,3489.4,0.03929842]
[1735086225726,2.86574,3489.5,3489.4,0.03929842]
[1735086226097,2.86586,3489.4,3489.0,0.8119]
[1735086226298,2.86546,3489.9,3489.0,0.8119]
[1735086226606,4.05036075,3490.2,3488.9,8.85]
[1735086226607,2.86553,3489.8,3489.2,0.8119]
[1735086229031,2.86535,3490.0,3489.2,0.8119]
[1735086229393,1.18520075,3490.1,3489.2,0.8119]
[1735086229736,2.86544,3489.9,3489.2,0.8119]
[1735086229945,1.18520075,3490.1,3489.2,0.8119]
[1735086230133,4.05046075,3490.1,3489.3,1.07305705]
[1735086230437,4.05046075,3490.1,3489.4,0.7932]
[1735086230825,1.18520075,3490.0,3489.4,0.7932]
[1735086231204,1.18520075,3490.0,3489.4,9.6432]
[1735086232148,0.95719328,3490.0,3489.5,0.7932]
[1735086232327,0.95719328,3490.0,3489.6,1.07162571]
[1735086232644,0.95719328,3490.0,3489.5,9.6432]
[1735086232950,0.95719328,3490.0,3489.6,0.03894017]
[1735086233855,0.95719328,3490.2,3489.6,0.03894017]
[1735086234155,0.95719328,3490.2,3489.7,0.7932]
[1735086234339,0.95719328,3490.2,3489.8,0.03892829]
[1735086234514,0.95719328,3490.2,3489.7,0.7932]
[1735086234918,0.95719328,3490.2,3489.9,9.6432]
[1735086235136,1.18520075,3490.4,3490.2,0.7932]
[1735086235651,1.18520075,3490.4,3490.3,0.03881777]
[1735086236553,2.8649,3490.6,3490.3,0.03881777]
[1735086237551,2.8649,3490.6,3490.2,0.7932]
[1735086237753,2.8649,3490.6,3490.2,1.75752]
[1735086238055,1.18520075,3490.8,3490.3,0.03870234]
[1735086239062,4.04971075,3491.0,3490.3,0.03870234]
[1735086240262,2.86451,3491.0,3490.3,0.03870234]
[1735086240629,2.86463,3490.9,3490.3,0.03870234]
[1735086240863,2.86463,3490.9,3490.3,0.21832457]
[1735086241367,2.86479,3490.7,3490.3,0.03870234]
[1735086243464,2.86491,3490.6,3490.3,0.03870234]
[1735086243664,3.67261,3490.6,3490.3,0.03870234]
[1735086243865,2.86491,3490.6,3490.3,0.03870234]
[1735086244067,2.86491,3490.6,3490.0,8.85]
[1735086244238,2.86491,3490.6,3490.4,0.03784239]
[1735086244560,2.8647,3490.8,3490.5,0.03783645]
[1735086244763,2.8647,3490.8,3490.1,1.12028027]
[1735086245072,2.8647,3490.8,3490.2,0.03788312]
[1735086245360,1.18520075,3491.0,3490.3,0.8169]
[1735086245537,4.04972075,3491.0,3490.4,0.03787124]
[1735086246668,2.86452,3491.0,3490.4,0.03787124]
[1735086248174,1.18520075,3491.3,3490.4,0.03787124]
[1735086248327,2.86476,3490.7,3490.4,0.03787124]
[1735086249341,2.86491,3490.5,3490.4,0.03787124]
[1735086249671,2.86537,3490.0,3489.5,1.19304826]
[1735086250644,2.86537,3490.0,3489.4,0.8169]
[1735086252274,1.99290075,3490.5,3489.4,0.8169]
[1735086253133,2.86618,3489.0,3488.6,2.00994826]
[1735086253364,2.86639,3488.7,3488.6,1.19304826]
[1735086254304,6.3041973,3488.7,3488.6,1.19304826]
[1735086254502,9.3041973,3488.7,3488.6,1.19304826]
[1735086254811,2.86675,3488.3,3487.5,1.19304826]
[1735086254966,6.67409,3488.7,3487.5,1.19304826]
[1735086255308,2.86694,3488.1,3487.5,2.69660998]
[1735086255466,1.475109,3488.7,3487.5,2.69660998]
[1735086255667,2.86688,3488.2,3487.5,2.69660998]
[1735086256382,2.86688,3488.2,3487.5,1.50356172]
[1735086257708,2.86662,3488.5,3487.5,1.50356172]
[1735086257912,2.86664,3488.4,3487.6,1.11704617]
[1735086258507,2.86674,3488.3,3487.6,1.11704617]
[1735086262633,2.86674,3488.3,3487.7,0.0331206]
[1735086262930,2.86655,3488.6,3487.8,0.7595]
[1735086263436,2.86655,3488.6,3487.9,0.0331087]
[1735086263735,2.86655,3488.6,3488.0,2.84628631]
[1735086264031,2.86655,3488.6,3488.1,0.03407773]
[1735086264548,2.86615,3489.0,3488.0,0.7595]
[1735086264755,2.86615,3489.0,3488.2,0.03408333]
[1735086265065,2.86615,3489.0,3488.3,0.03407738]
[1735086265193,0.8167,3489.3,3488.3,0.03407738]
[1735086265194,2.86627,3488.9,3488.3,0.03407738]
[1735086265388,1.22747993,3489.2,3488.0,0.7595]
[1735086265589,2.86626,3488.9,3488.1,0.03408928]
[1735086265892,2.86639,3488.7,3488.1,0.03408928]
[1735086266091,2.8668,3488.2,3488.1,0.03408928]
[1735086266297,2.8675,3487.4,3487.2,0.7595]
[1735086266605,2.86731,3487.6,3487.3,0.03154466]
[1735086266785,2.86731,3487.6,3486.8,0.7595]
[1735086266987,2.86731,3487.6,3486.9,0.03156665]
[1735086268727,0.8167,3488.1,3487.0,0.7595]
[1735086268933,0.8167,3488.1,3487.1,0.96410666]
[1735086269095,0.8167,3488.1,3487.1,0.9956614]
[1735086269495,5.8667,3488.4,3487.1,0.9956614]
[1735086269696,2.86697,3488.0,3487.1,0.9956614]
[1735086269927,2.86697,3488.0,3487.1,35.9956614]
[1735086270108,2.86697,3488.0,3487.2,2.84628631]
[1735086270315,2.86697,3488.0,3487.1,0.9956614]
[1735086270519,2.86697,3488.0,3487.3,0.03154284]
[1735086270857,2.86697,3488.0,3487.4,0.03153689]
[1735086271198,2.86697,3488.0,3487.1,0.96410666]
[1735086271397,2.86697,3488.0,3487.2,0.03154879]
[1735086271814,2.86707,3487.9,3487.2,0.03154879]
[1735086272512,2.86707,3487.9,3487.2,1.09206433]
[1735086273160,3.0,3488.4,3487.2,1.09206433]
[1735086273334,3.0,3488.2,3487.2,1.09206433]
[1735086273544,2.86714,3487.8,3487.2,1.09206433]
[1735086277753,3.0,3488.1,3487.2,0.03154879]
[1735086277955,2.8674,3487.5,3487.2,0.03154879]
[1735086278267,2.86678,3488.3,3487.2,0.06022464]
[1735086278457,2.86705,3488.0,3487.3,0.7503]
[1735086278770,2.86705,3488.0,3487.4,0.03202159]
[1735086279266,2.86706,3487.9,3487.4,0.03202159]
[1735086280285,2.86685,3488.2,3487.4,0.03202159]
[1735086280503,2.86724,3487.7,3487.4,0.03202159]
[1735086280656,0.367568,3488.2,3487.4,0.03202159]
[1735086280863,2.86738,3487.5,3487.4,0.03202159]
[1735086281265,2.86738,3487.5,3487.0,0.7503]
[1735086281465,2.86738,3487.5,3487.4,0.0325005]
[1735086281695,2.86738,3487.5,3487.0,0.7503]
[1735086282095,2.86738,3487.5,3487.1,0.03251836]
[1735086283622,2.86747,3487.4,3487.1,0.03251836]
[1735086285528,2.86763,3487.2,3487.1,0.03251836]
[1735086285867,2.86763,3487.2,3486.7,0.7503]
[1735086286137,2.86763,3487.2,3487.1,0.03269729]
[1735086286290,2.86809,3486.7,3486.3,0.7503]
[1735086288544,2.86787,3487.0,3486.3,0.7503]
[1735086288887,2.8679,3486.9,3486.3,0.7503]
[1735086290604,3.0,3487.6,3486.3,0.7503]
[1735086290947,2.86772,3487.1,3486.3,0.7503]
[1735086292447,3.0,3487.3,3486.3,0.7503]
[1735086292622,2.86789,3486.9,3486.4,0.03367423]
[1735086294260,0.803,3487.0,3486.4,0.03367423]
[1735086294550,2.8682,3486.5,3486.4,0.03367423]
[1735086294901,2.8682,3486.5,3486.1,8.85]
[1735086295398,2.86841,3486.3,3486.2,0.03363417]
[1735086295597,1.08982,3486.5,3485.5,8.85]
[1735086295893,2.86886,3485.7,3485.6,0.03366991]
[1735086296337,2.86894,3485.6,3485.1,0.766]
[1735086296895,3.67178,3485.8,3485.1,0.766]
[1735086297111,2.86878,3485.8,3485.1,0.766]
[1735086300888,0.803,3486.1,3485.1,0.766]
[1735086301025,3.4331073,3486.1,3484.8,0.8287]
[1735086301233,2.86923,3485.3,3484.8,0.8287]
[1735086302068,2.8689,3485.7,3484.8,0.8287]
[1735086302272,2.86856,3486.1,3485.1,0.8287]
[1735086302581,3.64627,3486.3,3485.3,0.8287]
[1735086302793,4.6451012,3486.6,3485.7,8.85]
[1735086302794,2.6027212,3486.6,3485.7,8.85]
[1735086303039,1.7769212,3486.6,3485.9,11.71867]
[1735086303333,1.18520075,3486.3,3486.2,2.86844]
[1735086303474,1.18520075,3486.3,3486.1,0.8084]
[1735086304626,1.18520075,3486.3,3486.1,3.67693]
[1735086304935,0.8258,3487.5,3486.2,11.69628631]
[1735086305503,2.86738,3487.5,3486.3,3.67669]
[1735086306010,2.86749,3487.4,3486.4,8.85]
[1735086307590,2.8673,3487.6,3486.5,0.03511822]
[1735086307851,2.8673,3487.6,3486.6,1.25617582]
[1735086308059,2.86715,3487.8,3486.8,8.85]
[1735086308191,2.86699,3488.0,3487.0,0.8084]
[1735086308395,2.86699,3488.0,3487.1,0.03508249]
[1735086309854,1.18520075,3488.2,3487.3,0.8084]
[1735086310057,1.18520075,3488.2,3487.3,3.67592]
[1735086310192,0.8258,3488.1,3487.4,0.03289876]
[1735086310437,2.86723,3487.7,3487.4,0.03289876]
[1735086310631,2.86723,3487.7,3487.0,9.6584]
[1735086310848,0.8258,3488.1,3487.0,9.6584]
[1735086310849,0.8258,3488.1,3487.1,0.03283582]
[1735086310993,2.86747,3487.4,3487.1,0.03283582]
[1735086311193,2.86761,3487.3,3487.1,0.03283582]
[1735086312233,3.0,3487.9,3486.7,0.8084]
[1735086312234,2.86737,3487.6,3486.7,0.8084]
[1735086312559,2.86737,3487.6,3486.8,0.03309034]
[1735086313297,2.86739,3487.5,3486.8,0.03309034]
[1735086313914,0.8258,3487.8,3486.8,0.03309034]
[1735086314135,2.86749,3487.4,3486.8,0.03309034]
[1735086315616,0.20110008,3487.7,3486.8,0.03309034]
[1735086315909,2.86778,3487.1,3486.8,0.03309034]
[1735086316106,2.86787,3486.9,3486.8,0.03309034]
[1735086316294,2.86796,3486.8,3486.1,0.8084]
[1735086316495,0.8258,3487.2,3486.2,0.96584]
[1735086316496,2.86773,3487.1,3486.2,0.96584]
[1735086317598,2.8678,3487.0,3486.2,0.96584]
[1735086318292,5.01100075,3487.5,3486.1,0.8084]
[1735086318536,3.0,3487.2,3486.1,0.8084]
[1735086318735,2.86786,3487.0,3486.1,0.8084]
[1735086319640,2.86792,3486.9,3486.1,0.8084]
[1735086319937,0.771,3486.5,3485.8,0.7746]
[1735086320122,2.86839,3486.3,3485.8,0.7746]
[1735086320443,2.86847,3486.2,3485.8,0.7746]
[1735086321011,2.86832,3486.4,3485.8,0.7746]
[1735086321215,1.18520075,3486.9,3485.8,1.73706]
[1735086321525,2.86811,3486.7,3485.8,1.73706]
[1735086322584,4.6446712,3487.1,3485.8,1.73706]
[1735086322585,2.86814,3486.6,3485.8,1.73706]
[1735086322874,2.86814,3486.6,3485.9,0.03386572]
[1735086323756,0.771,3486.9,3485.9,0.03386572]
[1735086323935,3.0,3486.7,3485.9,0.03386572]
[1735086324135,2.8686,3486.1,3485.9,0.03386572]
[1735086324342,2.86864,3486.0,3485.5,0.7746]
[1735086324786,2.86871,3485.9,3485.6,0.0341204]
[1735086325279,3.232681,3485.9,3485.7,0.03426464]
[1735086325729,3.232681,3485.9,3485.1,9.6246]
[1735086325931,2.86871,3485.9,3485.8,0.03425868]
[1735086326130,2.86871,3485.9,3485.1,0.7746]
[1735086326592,2.86871,3485.9,3485.2,0.03429444]
[1735086326940,0.771,3486.2,3485.2,0.03429444]
[1735086327139,2.8687,3485.9,3485.2,0.03429444]
[1735086327383,2.8687,3485.9,3485.2,1.00018388]
[1735086328194,2.8687,3485.9,3485.3,0.7746]
[1735086328505,2.8687,3485.9,3485.4,0.03428252]
[1735086329086,2.86856,3486.1,3485.4,0.03428252]
[1735086331704,2.86864,3486.0,3485.4,0.03428252]
[1735086332000,2.86869,3486.0,3485.4,0.03428252]
[1735086333471,2.86869,3486.0,3485.4,1.09675972]
[1735086334475,2.86847,3486.2,3485.4,1.09675972]
[1735086334693,2.86836,3486.4,3485.5,0.8307]
[1735086334899,2.86838,3486.3,3485.5,0.8307]
[1735086335192,2.86848,3486.2,3485.6,0.0342706]
[1735086335975,2.86848,3486.2,3485.6,8.8842706]
[1735086336186,2.86853,3486.1,3485.6,8.8842706]
[1735086336588,5.23611874,3486.6,3485.6,8.8842706]
[1735086336819,5.05133871,3486.8,3485.6,8.8842706]
[1735086336981,2.8682,3486.6,3485.7,0.8307]
[1735086337312,2.86827,3486.5,3485.8,0.03474968]
[1735086337459,2.86828,3486.5,3485.8,0.03474968]
[1735086337658,2.86828,3486.5,3485.9,0.97154497]
[1735086337853,1.18520075,3486.8,3485.9,0.97154497]
[1735086337854,1.18520075,3486.8,3486.0,0.86548399]
[1735086338107,1.18520075,3486.8,3486.2,8.85]
[1735086338257,1.18520075,3486.8,3486.3,0.8307]
[1735086338460,1.18520075,3486.8,3486.4,0.03475439]
[1735086338701,2.86801,3486.8,3486.4,0.03475439]
[1735086339188,2.86804,3486.7,3486.3,0.8307]
[1735086339502,2.86804,3486.7,3486.4,0.03475439]
[1735086339698,1.18520075,3487.0,3486.4,0.03475439]
[1735086339900,2.8679,3486.9,3486.3,0.8307]
[1735086340104,4.05277075,3487.3,3486.4,0.96807]
[1735086340297,1.18520075,3487.3,3486.4,1.00282439]
[1735086340606,2.86779,3487.1,3486.4,1.00282439]
[1735086341775,3.83606533,3487.3,3486.4,1.00282439]
[1735086341975,3.83606533,3487.3,3486.5,9.6807]
[1735086342188,0.96850533,3487.3,3486.7,0.8307]
[1735086342775,1.18520075,3487.4,3486.8,0.03473057]
[1735086344407,2.86729,3487.7,3486.8,0.03473057]
[1735086345294,2.86729,3487.7,3486.9,0.8307]
[1735086345695,2.86729,3487.7,3487.0,0.03471866]
[1735086345894,2.86729,3487.7,3487.0,1.00626053]
[1735086346413,2.86733,3487.6,3487.0,1.00626053]
[1735086351895,2.86753,3487.4,3487.0,0.03471866]
[1735086353802,4.05235075,3487.8,3487.0,0.03471866]
[1735086354603,2.86722,3487.7,3487.0,0.03471866]
[1735086363338,1.18520075,3487.9,3487.0,0.03471866]
[1735086363543,2.86731,3487.6,3487.0,0.03471866]
[1735086367001,2.86716,3487.8,3487.0,0.03471866]
[1735086367240,2.86716,3487.8,3487.1,0.97154187]
[1735086367610,2.86716,3487.8,3487.2,0.0318256]
[1735086367944,1.18520075,3487.9,3487.3,0.7597]
[1735086368100,2.86722,3487.7,3487.3,0.79147346]
[1735086370520,2.86746,3487.4,3487.3,0.03177346]
[1735086370698,3.154206,3487.4,3487.3,0.03177346]
[1735086370900,2.86771,3487.1,3486.6,0.7597]
[1735086371210,2.86771,3487.1,3486.7,0.03175149]
[1735086373841,2.27894675,3487.4,3486.7,0.03175149]
[1735086373842,2.86795,3486.8,3486.7,0.03175149]
[1735086374025,6.961745,3486.8,3486.7,0.03175149]
[1735086374217,3.0,3486.7,3485.9,0.7597]
[1735086374616,2.6301073,3486.7,3485.9,0.7597]
[1735086374820,0.807,3486.2,3485.5,0.7597]
[1735086375019,2.86872,3485.9,3485.3,0.7597]
[1735086377425,2.86878,3485.8,3485.3,0.7597]
[1735086378175,2.86887,3485.7,3485.3,0.7597]
[1735086378680,2.86907,3485.5,3484.6,9.6088]
[1735086378970,2.86883,3485.8,3484.7,0.7588]
[1735086379173,2.86861,3486.1,3484.9,2.8695]
[1735086379390,2.86861,3486.0,3485.1,0.7588]
[1735086380687,1.18520075,3486.1,3485.3,9.6088]
[1735086380853,1.18520075,3486.1,3485.4,0.7588]
[1735086381291,2.86838,3486.3,3485.4,0.7588]
[1735086381679,2.8683,3486.4,3485.4,0.7588]
[1735086381892,2.8683,3486.4,3485.5,1.247797]
[1735086383191,2.8683,3486.4,3485.7,0.7588]
[1735086383494,2.8683,3486.4,3485.8,0.03278109]
[1735086383988,2.86837,3486.3,3485.8,0.03278109]
[1735086384490,2.86837,3486.3,3485.9,0.03277513]
[1735086384848,2.86837,3486.3,3485.7,0.7588]
[1735086385048,2.86845,3486.2,3485.7,0.7588]
[1735086385352,2.86845,3486.2,3485.8,0.03353753]
[1735086385767,2.86845,3486.2,3485.7,0.7588]
[1735086386104,0.365645,3486.2,3485.9,0.03353157]
[1735086386327,3.65669,3485.9,3484.7,0.7588]
[1735086386526,2.86913,3485.4,3484.7,0.7588]
[1735086386686,2.86913,3485.4,3484.8,1.08018483]
[1735086387265,2.86913,3485.4,3484.7,0.7588]
[1735086387468,2.86913,3485.4,3484.7,1.32815228]
[1735086390770,2.86853,3486.1,3484.9,2.86952]
[1735086391009,2.86853,3486.1,3485.1,0.7588]
[1735086391221,2.86853,3486.1,3485.2,0.362822]
[1735086391704,2.86839,3486.3,3485.3,8.85]
[1735086392005,2.86839,3486.3,3485.4,0.7588]
[1735086392509,1.18520075,3486.5,3485.5,0.7588]
[1735086392683,1.18520075,3486.5,3485.6,1.2764763]
[1735086392883,4.05347075,3486.5,3485.6,1.24779]
[1735086393075,2.86827,3486.5,3485.6,1.27647635]
[1735086393718,2.86827,3486.5,3485.6,1.24779]
[1735086393931,2.86789,3486.9,3485.9,0.7767]
[1735086394099,2.86789,3486.9,3486.0,0.96267]
[1735086394312,1.18520075,3487.1,3486.1,0.7767]
[1735086394512,2.86785,3487.0,3486.1,0.7767]
[1735086395824,2.86765,3487.2,3486.1,8.85]
[1735086396033,2.86765,3487.2,3486.2,3.62298631]
[1735086397538,2.86765,3487.2,3486.2,0.7767]
[1735086397733,2.86765,3487.2,3486.3,0.03308607]
[1735086399228,2.86772,3487.1,3486.3,8.88308607]
[1735086402138,2.86772,3487.1,3486.4,8.85]
[1735086402294,2.86772,3487.1,3486.5,0.03307416]
[1735086402494,2.86772,3487.1,3486.5,0.99905158]
[1735086403837,0.8308,3487.3,3486.5,0.03307416]
[1735086403995,2.86796,3486.8,3486.5,0.03307416]
[1735086404405,2.86778,3487.1,3486.5,0.03307416]
[1735086404606,3.0,3487.6,3486.6,0.7877]
[1735086404607,1.18520075,3487.4,3486.6,0.7877]
[1735086404820,1.18520075,3487.4,3486.8,9.6377]
[1735086405019,4.05268075,3487.4,3486.8,9.6377]
[1735086405296,2.86765,3487.2,3486.9,0.03268645]
[1735086405505,2.86765,3487.2,3486.8,9.6377]
[1735086405741,2.86765,3487.2,3486.9,0.03268645]
[1735086405950,2.86765,3487.2,3486.8,9.6377]
[1735086407810,2.86765,3487.2,3486.8,9.93194994]
[1735086408146,1.18520075,3487.6,3486.9,0.03255941]
[1735086408366,2.86748,3487.4,3486.8,0.7877]
[1735086408860,2.86748,3487.4,3486.9,0.03239194]
[1735086409159,2.86748,3487.4,3486.8,0.7877]
[1735086409552,2.86748,3487.4,3486.9,0.03239194]
[1735086409726,2.86748,3487.4,3486.8,0.7877]
[1735086409926,2.86748,3487.4,3486.9,0.03239194]
[1735086410143,2.86748,3487.4,3486.8,0.7877]
[1735086410346,2.86748,3487.4,3486.9,0.03239194]
[1735086410838,2.86732,3487.6,3486.9,0.03239194]
[1735086411224,2.86732,3487.6,3486.8,0.7877]
[1735086411452,2.86732,3487.6,3487.0,0.03231092]
[1735086411648,2.86732,3487.6,3486.9,1.05443376]
[1735086411864,4.05232075,3487.9,3487.1,0.85890497]
[1735086412067,4.05232075,3487.9,3487.1,0.8266]
[1735086412223,4.05232075,3487.9,3487.2,0.03225283]
[1735086412426,4.05232075,3487.9,3487.2,0.5071368]
[1735086413042,3.65067,3488.1,3487.2,9.3571368]
[1735086413242,0.7837,3488.1,3487.2,9.3571368]
[1735086413427,2.86698,3488.0,3487.2,9.3571368]
[1735086413625,1.18520075,3488.2,3487.4,0.8266]
[1735086413826,4.05208075,3488.2,3487.4,0.8266]
[1735086414146,2.8669,3488.1,3487.5,0.03209064]
[1735086414728,4.96890075,3488.4,3487.5,0.03209064]
[1735086414960,3.0,3488.2,3487.5,0.03209064]
[1735086415124,1.96890075,3488.4,3487.5,0.03209064]
[1735086415125,2.8669,3488.1,3487.5,0.03209064]
[1735086415324,2.8669,3488.1,3487.5,1.18096337]
[1735086419493,2.86698,3488.0,3487.5,1.18096337]
[1735086420148,2.86698,3488.0,3487.5,10.03096337]
[1735086420939,2.86692,3488.1,3487.5,8.88209064]
[1735086421178,2.86727,3487.7,3487.5,8.88209064]
[1735086422760,2.8673,3487.6,3487.5,8.88209064]
[1735086422964,2.8673,3487.6,3487.5,8.85]
[1735086423188,2.86738,3487.5,3486.8,0.8278]
[1735086423411,2.86764,3487.2,3486.8,1.85289888]
[1735086423583,2.6301073,3487.6,3486.8,0.8278]
[1735086423776,2.86782,3487.0,3486.8,0.8278]
[1735086423970,2.8683,3486.4,3485.9,9.6778]
[1735086426317,0.7848,3486.5,3485.9,0.8278]
[1735086426607,0.7848,3486.5,3485.6,9.6778]
[1735086426608,2.86842,3486.3,3485.6,9.6778]
[1735086426807,2.86842,3486.3,3485.7,1.0255984]
[1735086427915,2.86842,3486.3,3485.8,0.03148764]
[1735086428110,2.86842,3486.3,3485.7,1.0255984]
[1735086428414,3.65303,3486.5,3485.8,0.03148764]
[1735086430119,2.86823,3486.5,3485.9,0.8278]
[1735086430276,2.86823,3486.5,3486.0,0.1884886]
[1735086430573,2.86823,3486.5,3486.0,0.21996433]
[1735086431991,2.86805,3486.7,3486.0,0.21996433]
[1735086432221,0.7848,3486.9,3486.0,0.21996433]
[1735086432609,0.7848,3486.9,3486.0,0.03147573]
[1735086433131,2.86835,3486.4,3486.0,0.03147573]
[1735086433315,2.6301073,3486.8,3486.0,0.03147573]
[1735086433519,2.86852,3486.2,3485.7,8.85]
[1735086434028,2.86852,3486.2,3485.8,0.03231327]
[1735086434398,2.86852,3486.2,3485.7,8.85]
[1735086434633,2.86852,3486.2,3485.9,0.03230732]
[1735086434933,2.86804,3486.7,3485.8,0.03323712]
[1735086435236,2.86805,3486.7,3485.9,0.03323116]
[1735086435391,2.86805,3486.7,3486.0,0.8278]
[1735086435810,2.86805,3486.7,3486.1,0.03321925]
[1735086436010,2.86805,3486.7,3486.1,1.00432117]
[1735086436599,1.18520075,3486.8,3486.1,1.00432117]
[1735086437477,2.86787,3486.9,3486.1,1.00432117]
[1735086437943,2.86787,3486.9,3486.2,0.7805]
[1735086438308,2.86787,3486.9,3486.3,0.03311491]
[1735086438542,2.86787,3486.9,3486.4,1.06347168]
[1735086438720,2.86787,3486.9,3486.5,0.03302791]
[1735086442112,2.86787,3486.9,3486.2,0.7805]
[1735086442445,2.86787,3486.9,3486.3,0.03294164]
[1735086443446,3.0,3487.0,3486.3,0.03294164]
[1735086443615,3.63348,3486.4,3486.3,0.03294164]
[1735086443814,3.63348,3486.4,3485.6,0.7805]
[1735086443815,2.86849,3486.2,3485.6,0.7805]
[1735086444246,0.7652,3486.4,3485.7,0.03188902]
[1735086444548,2.86886,3485.7,3485.3,1.97354826]
[1735086444910,2.86886,3485.7,3485.4,0.03201658]
[1735086448424,4.05365075,3486.2,3485.4,0.03201658]
[1735086448753,5.1722285,3486.4,3485.3,0.7805]
[1735086448754,2.86872,3485.9,3485.3,0.7805]
[1735086449049,2.86872,3485.9,3485.4,0.03248431]
[1735086451244,2.86874,3485.9,3485.4,0.03248431]
[1735086453469,2.86856,3486.1,3485.4,0.03248431]
[1735086453666,0.7652,3486.4,3485.4,0.03248431]
[1735086453871,3.0,3486.2,3485.4,0.03248431]
[1735086454166,3.0,3486.2,3485.4,0.40070974]
[1735086454364,2.86878,3485.9,3485.4,0.03248431]
[1735086454543,2.86875,3485.9,3485.4,0.03248431]
[1735086455367,2.86855,3486.1,3485.4,0.03248431]
[1735086455545,0.7652,3486.4,3485.5,0.7766]
[1735086455728,0.7652,3486.4,3485.6,0.03285921]
[1735086455930,2.8682,3486.5,3485.6,0.03285921]
[1735086456265,4.86540075,3486.6,3485.6,0.03285921]
[1735086456565,1.99720075,3486.6,3485.6,0.03285921]
[1735086456780,2.86836,3486.4,3485.6,0.03285921]
[1735086458580,2.86836,3486.4,3485.7,0.7766]
[1735086458883,2.86836,3486.4,3485.8,0.03285306]
[1735086459249,3.0,3486.9,3485.8,0.03285306]
[1735086459250,0.812,3486.9,3485.9,0.7766]
[1735086459584,2.86812,3486.6,3486.0,0.99853815]